fUST/lending_fUST_20250724
["ID","MTS","AMOUNT","RATE_DAILY","PERIOD"]
[374497266,1753324244473,-151.0,0.00019452,2]
[374497267,1753324244482,-151.0,0.00019452,2]
[374497268,1753324244492,-151.0,0.00019452,2]
[374497269,1753324244501,-151.0,0.00019452,2]
[374497270,1753324244512,-466.96064136,0.00019452,2]
[374497271,1753324244521,-195.113743,0.00019452,2]
[374497272,1753324244532,-195.113743,0.00019452,2]
[374497273,1753324244542,-195.113743,0.00019452,2]
[374497274,1753324244553,-195.113743,0.00019452,2]
[374497275,1753324244563,-402.9328161,0.00019452,2]
[374497276,1753324244573,-460.0,0.00019452,2]
[374497277,1753324244582,-460.0,0.00019452,2]
[374497278,1753324244592,-460.0,0.00019452,2]
[374497279,1753324244727,-460.0,0.00019452,2]
[374497280,1753324244738,-460.0,0.00019452,2]
[374497281,1753324244748,-471.10524538,0.00019452,2]
[374497282,1753324244757,-1423.89,0.00019452,2]
[374497283,1753324244767,-464.48442416,0.00019452,2]
[374497284,1753324244777,-460.0,0.00019452,2]
[374497285,1753324244787,-460.0,0.00019452,2]
[374497286,1753324244797,-151.0,0.00019452,2]
[374497287,1753324244810,-500.0,0.00019452,2]
[374497288,1753324244819,-464.92859726,0.00019452,2]
[374497289,1753324244829,-152.10859249,0.00019452,2]
[374497290,1753324244839,-151.51101564,0.00019452,2]
[374497291,1753324244852,-500.0,0.00019452,2]
[374497292,1753324244862,-443.25031025,0.00019452,2]
[374497293,1753324244872,-151.0,0.00019452,2]
[374497294,1753324244882,-151.67619804,0.00019452,2]
[374497295,1753324244893,-460.0,0.00019452,2]
[374497296,1753324244903,-460.0,0.00019452,2]
[374497297,1753324244913,-460.0,0.00019452,2]
[374497298,1753324244925,-460.0,0.00019452,2]
[374497299,1753324244935,-460.0,0.00019452,2]
[374497300,1753324244944,-460.0,0.00019452,2]
[374497301,1753324244954,-463.4686171,0.00019452,2]
[374497302,1753324244964,-460.0,0.00019452,2]
[374497303,1753324244973,-468.68120064,0.00019452,2]
[374497304,1753324244983,-460.0,0.00019452,2]
[374497305,1753324244993,-1828.06,0.00019452,2]
[374497306,1753324245002,-499.87195062,0.00019452,2]
[374497307,1753324245012,-460.0,0.00019452,2]
[374497308,1753324245021,-460.0,0.00019452,2]
[374497309,1753324245031,-460.0,0.00019452,2]
[374497310,1753324245040,-460.0,0.00019452,2]
[374497311,1753324245049,-460.0,0.00019452,2]
[374497312,1753324245062,-460.0,0.00019452,2]
[374497313,1753324245071,-468.24167267,0.00019452,2]
[374497314,1753324245081,-460.0,0.00019452,2]
[374497315,1753324245091,-460.0,0.00019452,2]
[374497316,1753324245101,-460.0,0.00019452,2]
[374497317,1753324245113,-341.71501169,0.00019452,2]
[374497318,1753324245122,-460.0,0.00019452,2]
[374497319,1753324245132,-462.87783646,0.00019452,2]
[374497320,1753324245141,-801.33,0.00019452,2]
[374497321,1753324245150,-460.0,0.00019452,2]
[374497322,1753324245159,-598.92,0.00019452,2]
[374497323,1753324245168,-460.0,0.00019452,2]
[374497324,1753324245178,-465.07706111,0.00019452,2]
[374497325,1753324245188,-460.0,0.00019452,2]
[374497326,1753324245197,-460.0,0.00019452,2]
[374497327,1753324245207,-372.92667167,0.00019452,2]
[374497328,1753324245216,-460.0,0.00019452,2]
[374497329,1753324245226,-462.43745262,0.00019452,2]
[374497330,1753324245235,-460.0,0.00019452,2]
[374497331,1753324245244,-438.39330427,0.00019452,2]
[374497332,1753324245254,-460.0,0.00019452,2]
[374497333,1753324245263,-465.48044456,0.00019452,2]
[374497334,1753324245272,-460.0,0.00019452,2]
[374497335,1753324245281,-460.0,0.00019452,2]
[374497336,1753324245291,-460.0,0.00019452,2]
[374497337,1753324245301,-632.52,0.00019452,2]
[374497338,1753324245312,-460.0,0.00019452,2]
[374497339,1753324245322,-464.11884385,0.00019452,2]
[374497340,1753324245331,-460.0,0.00019452,2]
[374497341,1753324245340,-464.07652316,0.00019452,2]
[374497342,1753324245350,-460.0,0.00019452,2]
[374497343,1753324245359,-472.08818528,0.00019452,2]
[374497344,1753324245368,-462.36550959,0.00019452,2]
[374497345,1753324245378,-460.0,0.00019452,2]
[374497346,1753324245388,-386.61987533,0.00019452,2]
[374497347,1753324245397,-460.0,0.00019452,2]
[374497348,1753324245407,-463.44795246,0.00019452,2]
[374497349,1753324245416,-478.70290088,0.00019452,2]
[374497350,1753324245425,-460.0,0.00019452,2]
[374497351,1753324245435,-460.0,0.00019452,2]
[374497352,1753324245444,-460.0,0.00019452,2]
[374497353,1753324245453,-460.0,0.00019452,2]
[374497354,1753324245463,-182.86571439,0.00019452,2]
[374497355,1753324245472,-462.54667224,0.00019452,2]
[374497356,1753324245482,-460.0,0.00019452,2]
[374497357,1753324245491,-460.0,0.00019452,2]
[374497358,1753324245500,-460.0,0.00019452,2]
[374497359,1753324245510,-460.0,0.00019452,2]
[374497360,1753324245520,-461.24917933,0.00019452,2]
[374497361,1753324245529,-460.0,0.00019452,2]
[374497362,1753324245540,-460.0,0.00019452,2]
[374497363,1753324245550,-464.23581419,0.00019452,2]
[374497364,1753324245563,-460.0,0.00019452,2]
[374497365,1753324245575,-460.0,0.00019452,2]
[374497366,1753324245584,-460.0,0.00019452,2]
[374497367,1753324245596,-460.0,0.00019452,2]
[374497368,1753324245606,-464.16831374,0.00019452,2]
[374497369,1753324245615,-460.0,0.00019452,2]
[374497370,1753324245624,-460.0,0.00019452,2]
[374497371,1753324245634,-460.0,0.00019452,2]
[374497372,1753324245643,-460.0,0.00019452,2]
[374497373,1753324245653,-241.6944688,0.00019452,2]
[374497374,1753324245663,-460.0,0.00019452,2]
[374497375,1753324245672,-462.04341054,0.00019452,2]
[374497376,1753324245681,-460.0,0.00019452,2]
[374497377,1753324245691,-460.0,0.00019452,2]
[374497378,1753324245700,-460.0,0.00019452,2]
[374497379,1753324245710,-483.91,0.00019452,2]
[374497380,1753324245720,-460.0,0.00019452,2]
[374497381,1753324245729,-461.84225559,0.00019452,2]
[374497382,1753324245738,-460.0,0.00019452,2]
[374497383,1753324245748,-460.0,0.00019452,2]
[374497384,1753324245757,-347.41600724,0.00019452,2]
[374497385,1753324245767,-463.39559709,0.00019452,2]
[374497386,1753324245777,-460.0,0.00019452,2]
[374497387,1753324245787,-460.0,0.00019452,2]
[374497388,1753324245796,-460.0,0.00019452,2]
[374497389,1753324245811,-460.0,0.00019452,2]
[374497390,1753324245825,-464.61815793,0.00019452,2]
[374497391,1753324245834,-464.35056706,0.00019452,2]
[374497392,1753324245847,-460.0,0.00019452,2]
[374497393,1753324245857,-460.0,0.00019452,2]
[374497394,1753324245866,-463.57424948,0.00019452,2]
[374497395,1753324245875,-464.3496257,0.00019452,2]
[374497396,1753324245885,-460.0,0.00019452,2]
[374497397,1753324245895,-463.20310559,0.00019452,2]
[374497398,1753324245905,-460.0,0.00019452,2]
[374497399,1753324245915,-460.0,0.00019452,2]
[374497400,1753324245926,-460.0,0.00019452,2]
[374497401,1753324245937,-460.0,0.00019452,2]
[374497402,1753324245947,-460.0,0.00019452,2]
[374497403,1753324245957,-460.0,0.00019452,2]
[374497404,1753324245967,-460.0,0.00019452,2]
[374497405,1753324245976,-460.0,0.00019452,2]
[374497406,1753324245986,-460.0,0.00019452,2]
[374497407,1753324245996,-460.0,0.00019452,2]
[374497408,1753324246006,-460.0,0.00019452,2]
[374497409,1753324246015,-460.0,0.00019452,2]
[374497410,1753324246024,-473.21117086,0.00019452,2]
[374497411,1753324246033,-465.04621665,0.00019452,2]
[374497412,1753324246043,-460.0,0.00019452,2]
[374497413,1753324246054,-460.0,0.00019452,2]
[374497414,1753324246063,-460.0,0.00019452,2]
[374497415,1753324246073,-1180.78,0.00019452,2]
[374497416,1753324246082,-460.0,0.00019452,2]
[374497417,1753324246092,-151.0,0.00019452,2]
[374497418,1753324246101,-460.0,0.00019452,2]
[374497419,1753324246114,-475.93335061,0.00019452,2]
[374497420,1753324246123,-151.0,0.00019452,2]
[374497421,1753324246133,-460.0,0.00019452,2]
[374497422,1753324246143,-463.11919013,0.00019452,2]
[374497423,1753324246152,-465.88666012,0.00019452,2]
[374497424,1753324246162,-460.0,0.00019452,2]
[374497425,1753324246171,-460.0,0.00019452,2]
[374497426,1753324246181,-460.0,0.00019452,2]
[374497427,1753324246190,-163.52629931,0.00019452,2]
[374497428,1753324246200,-460.0,0.00019452,2]
[374497429,1753324246210,-460.0,0.00019452,2]
[374497430,1753324246219,-609.19,0.00019452,2]
[374497431,1753324246230,-4913.5,0.00019452,2]
[374497432,1753324246240,-460.0,0.00019452,2]
[374497433,1753324246250,-151.0,0.00019452,2]
[374497434,1753324246259,-464.59231578,0.00019452,2]
[374497435,1753324246268,-460.0,0.00019452,2]
[374497436,1753324246277,-460.0,0.00019452,2]
[374497437,1753324246286,-464.24661083,0.00019452,2]
[374497438,1753324246295,-460.0,0.00019452,2]
[374497439,1753324246305,-460.0,0.00019452,2]
[374497440,1753324246314,-460.0,0.00019452,2]
[374497441,1753324246323,-460.0,0.00019452,2]
[374497442,1753324246333,-460.0,0.00019452,2]
[374497443,1753324246342,-460.0,0.00019452,2]
[374497444,1753324246352,-460.0,0.00019452,2]
[374497445,1753324246361,-447.345856,0.00019452,2]
[374497446,1753324246370,-2715.17,0.00019452,2]
[374497447,1753324246380,-460.0,0.00019452,2]
[374497448,1753324246391,-460.0,0.00019452,2]
[374497449,1753324246403,-460.15,0.00019452,2]
[374497450,1753324246413,-460.0,0.00019452,2]
[374497451,1753324246424,-460.0,0.00019452,2]
[374497452,1753324246433,-447.345856,0.00019452,2]
[374497453,1753324246443,-4782.96,0.00019452,2]
[374497454,1753324246452,-484.93,0.00019452,2]
[374497455,1753324246461,-460.0,0.00019452,2]
[374497456,1753324246470,-676.06,0.00019452,2]
[374497457,1753324246480,-581.88,0.00019452,2]
[374497458,1753324246489,-460.0,0.00019452,2]
[374497459,1753324246498,-392.00864119,0.00019452,2]
[374497460,1753324246508,-464.25894201,0.00019452,2]
[374497461,1753324246517,-460.0,0.00019452,2]
[374497462,1753324246527,-460.0,0.00019452,2]
[374497463,1753324246536,-151.0,0.00019452,2]
[374497464,1753324246545,-460.0,0.00019452,2]
[374497465,1753324246554,-460.0,0.00019452,2]
[374497466,1753324246564,-460.0,0.00019452,2]
[374497467,1753324246573,-460.0,0.00019452,2]
[374497468,1753324246582,-462.42363643,0.00019452,2]
[374497469,1753324246591,-460.0,0.00019452,2]
[374497470,1753324246601,-460.0,0.00019452,2]
[374497471,1753324246610,-682.48,0.00019452,2]
[374497472,1753324246619,-460.0,0.00019452,2]
[374497473,1753324246628,-460.0,0.00019452,2]
[374497474,1753324246638,-460.0,0.00019452,2]
[374497475,1753324246647,-930.27,0.00019452,2]
[374497476,1753324246656,-460.0,0.00019452,2]
[374497477,1753324246665,-488.29505013,0.00019452,2]
[374497478,1753324246673,-460.0,0.00019452,2]
[374497479,1753324246682,-462.3564401,0.00019452,2]
[374497480,1753324246692,-461.96010041,0.00019452,2]
[374497481,1753324246701,-2136.44,0.00019452,2]
[374497482,1753324246710,-460.0,0.00019452,2]
[374497483,1753324246719,-460.0,0.00019452,2]
[374497484,1753324246728,-460.0,0.00019452,2]
[374497485,1753324246737,-460.0,0.00019452,2]
[374497486,1753324246747,-469.93,0.00019452,2]
[374497487,1753324246757,-460.0,0.00019452,2]
[374497488,1753324246766,-305.50615135,0.00019452,2]
[374497489,1753324246775,-460.0,0.00019452,2]
[374497490,1753324246785,-498.79196115,0.00019452,2]
[374497491,1753324246794,-460.0,0.00019452,2]
[374497492,1753324246803,-338.35595142,0.00019452,2]
[374497493,1753324247266,-150.0,0.000189,2]
[374497494,1753324247275,-108.22,0.00019178,2]
[374497495,1753324247288,-351.78,0.00019178,2]
[374497496,1753324247297,-187.78785592,0.00019178,2]
[374497497,1753324247310,-272.21214408,0.00019178,2]
[374497498,1753324247319,-121.64404858,0.00019452,2]
[374497499,1753324247329,-460.0,0.00019452,2]
[374497500,1753324247339,-460.0,0.00019452,2]
[374497501,1753324247349,-460.0,0.00019452,2]
[374497502,1753324247358,-460.0,0.00019452,2]
[374497503,1753324247369,-460.0,0.00019452,2]
[374497504,1753324247378,-460.0,0.00019452,2]
[374497505,1753324247390,-460.0,0.00019452,2]
[374497506,1753324247399,-460.0,0.00019452,2]
[374497507,1753324247410,-230.684157,0.00019452,2]
[374497508,1753324247419,-460.0,0.00019452,2]
[374497509,1753324247430,-230.684157,0.00019452,2]
[374497510,1753324247440,-460.0,0.00019452,2]
[374497511,1753324247449,-462.95050938,0.00019452,2]
[374497512,1753324247458,-1368.766305,0.00019452,2]
[374497513,1753324247467,-460.0,0.00019452,2]
[374497514,1753324247476,-296.117976,0.00019452,2]
[374497515,1753324247485,-460.0,0.00019452,2]
[374497516,1753324247494,-430.63097168,0.00019452,2]
[374497517,1753324247503,-428.04055883,0.00019452,2]
[374497518,1753324247574,-1006.97944117,0.00019452,2]
[374497519,1753324247583,-465.99348425,0.00019452,2]
[374497520,1753324247592,-1368.766305,0.00019452,2]
[374497521,1753324247602,-464.02410599,0.00019452,2]
[374497522,1753324247611,-296.117976,0.00019452,2]
[374497523,1753324247621,-460.0,0.00019452,2]
[374497524,1753324247630,-460.0,0.00019452,2]
[374497525,1753324247639,-1285.56,0.00019452,2]
[374497526,1753324247649,-462.9255164,0.00019452,2]
[374497527,1753324247659,-460.0,0.00019452,2]
[374497528,1753324247668,-460.0,0.00019452,2]
[374497529,1753324247678,-460.0,0.00019452,2]
[374497530,1753324247687,-460.0,0.00019452,2]
[374497531,1753324247697,-460.51659652,0.00019452,2]
[374497532,1753324247707,-460.0,0.00019452,2]
[374497533,1753324247716,-464.19005534,0.00019452,2]
[374497534,1753324247726,-460.0,0.00019452,2]
[374497535,1753324247735,-460.0,0.00019452,2]
[374497536,1753324247744,-460.0,0.00019452,2]
[374497537,1753324247754,-460.0,0.00019452,2]
[374497538,1753324247764,-460.0,0.00019452,2]
[374497539,1753324247774,-463.27187243,0.00019452,2]
[374497540,1753324247783,-1692.26,0.00019452,2]
[374497541,1753324247792,-478.19,0.00019452,2]
[374497542,1753324247802,-460.0,0.00019452,2]
[374497543,1753324247812,-460.0,0.00019452,2]
[374497544,1753324247821,-1768.52,0.00019452,2]
[374497545,1753324247831,-1087.56,0.00019452,2]
[374497546,1753324247840,-617.48,0.00019452,2]
[374497547,1753324247854,-460.0,0.00019452,2]
[374497548,1753324247863,-460.0,0.00019452,2]
[374497549,1753324247872,-463.14566022,0.00019452,2]
[374497550,1753324247881,-493.19774768,0.00019452,2]
[374497551,1753324247892,-461.81931561,0.00019452,2]
[374497552,1753324247901,-460.0,0.00019452,2]
[374497553,1753324247911,-460.0,0.00019452,2]
[374497554,1753324247920,-252.92772177,0.00019452,2]
[374497555,1753324247930,-460.0,0.00019452,2]
[374497556,1753324247940,-460.0,0.00019452,2]
[374497557,1753324247950,-1336.52,0.00019452,2]
[374497558,1753324247959,-463.43521237,0.00019452,2]
[374497559,1753324247968,-460.0,0.00019452,2]
[374497560,1753324247978,-151.0,0.00019452,2]
[374497561,1753324247987,-460.0,0.00019452,2]
[374497562,1753324247996,-281.35903272,0.00019452,2]
[374497563,1753324248254,-380.50248296,0.00018864,2]
[374497564,1753324248264,-460.0,0.00019178,2]
[374497565,1753324248275,-460.93969887,0.00019178,2]
[374497566,1753324248284,-180.60951894,0.00019452,2]
[374497567,1753324248294,-460.0,0.00019452,2]
[374497568,1753324248303,-460.0,0.00019452,2]
[374497569,1753324248313,-460.0,0.00019452,2]
[374497570,1753324248322,-460.0,0.00019452,2]
[374497571,1753324248332,-460.0,0.00019452,2]
[374497572,1753324248342,-218.3646845,0.00019452,2]
[374497573,1753324248351,-1.13876563,0.00019452,2]
[374497574,1753324248363,-458.86123437,0.00019452,2]
[374497575,1753324248384,-465.36877959,0.00019452,2]
[374497576,1753324248393,-460.0,0.00019452,2]
[374497577,1753324248403,-445.98079867,0.00019452,2]
[374497578,1753324248412,-460.0,0.00019452,2]
[374497579,1753324248422,-460.0,0.00019452,2]
[374497580,1753324248431,-30.20111142,0.00019452,2]
[374497581,1753324248443,-353.73641951,0.00019452,2]
[374497582,1753324248452,-146.26358049,0.00019473,2]
[374497583,1753324248464,-361.37775621,0.00019473,2]
[374497584,1753324248473,-500.0,0.00019473,2]
[374497585,1753324248483,-501.20712262,0.00019473,2]
[374497586,1753324248493,-500.84329215,0.00019473,2]
[374497587,1753324248502,-528.06012073,0.00019473,2]
[374497588,1753324248512,-505.61579686,0.00019473,2]
[374497589,1753324248521,-500.0,0.00019473,2]
[374497590,1753324248531,-501.63367112,0.00019473,2]
[374497591,1753324248540,-500.0,0.00019473,2]
[374497592,1753324248549,-301.47714637,0.00019473,2]
[374497593,1753324248559,-500.91030172,0.00019473,2]
[374497594,1753324248569,-500.0,0.00019473,2]
[374497595,1753324248578,-182.15064316,0.00019616,3]
[374497596,1753324248588,-151.0,0.00019622,2]
[374497597,1753324248597,-151.0,0.00019622,2]
[374497598,1753324248607,-630.93387273,0.00019622,2]
[374497599,1753324248617,-500.0,0.00019622,2]
[374497600,1753324248626,-1519.495439,0.00019625,2]
[374497601,1753324248744,-179.73040439,0.00019655,2]
[374497602,1753324248754,-151.0,0.00019667,2]
[374497603,1753324248763,-151.0,0.00019667,2]
[374497604,1753324248773,-195.113743,0.00019667,2]
[374497605,1753324248783,-195.113743,0.00019667,2]
[374497606,1753324248793,-151.0,0.00019667,2]
[374497607,1753324248803,-151.0,0.00019667,2]
[374497608,1753324248814,-376.98408684,0.00019667,2]
[374497609,1753324248824,-38.5514697,0.00019667,2]
[374497610,1753324249461,-172.57006425,0.00018864,2]
[374497611,1753324249471,-500.0,0.00018864,2]
[374497612,1753324249479,-500.0,0.00018864,2]
[374497613,1753324249489,-371.91162019,0.00018864,2]
[374497614,1753324249498,-500.0,0.00018864,2]
[374497615,1753324249507,-506.06148252,0.00018864,2]
[374497616,1753324249516,-500.0,0.00018864,2]
[374497617,1753324249525,-500.0,0.00018864,2]
[374497618,1753324249535,-500.0,0.00018864,2]
[374497619,1753324249544,-418.09966352,0.00018864,2]
[374497620,1753324249553,-216.08066017,0.00018864,2]
[374497621,1753324249566,-310.01996406,0.00018864,2]
[374497622,1753324249576,-500.0,0.00018864,2]
[374497623,1753324249585,-500.0,0.00018864,2]
[374497624,1753324249595,-500.0,0.00018864,2]
[374497625,1753324249605,-500.0,0.00018864,2]
[374497626,1753324249614,-500.0,0.00018864,2]
[374497627,1753324249623,-500.0,0.00018864,2]
[374497628,1753324249633,-500.0,0.00018864,2]
[374497629,1753324249643,-500.0,0.00018864,2]
[374497630,1753324249652,-500.63041875,0.00018864,2]
[374497631,1753324249661,-500.0,0.00018864,2]
[374497632,1753324249671,-500.0,0.00018864,2]
[374497633,1753324249682,-500.0,0.00018864,2]
[374497634,1753324249696,-419.61455898,0.00018864,2]
[374497635,1753324249706,-500.0,0.00018864,2]
[374497636,1753324249715,-500.0,0.00018864,2]
[374497637,1753324249724,-500.0,0.00018864,2]
[374497638,1753324249734,-500.0,0.00018864,2]
[374497639,1753324249743,-612.82907396,0.00018864,2]
[374497640,1753324249753,-500.0,0.00018864,2]
[374497641,1753324249762,-500.0,0.00018864,2]
[374497642,1753324249771,-500.0,0.00018864,2]
[374497643,1753324249781,-500.0,0.00018864,2]
[374497644,1753324249791,-500.0,0.00018864,2]
[374497645,1753324249800,-500.0,0.00018864,2]
[374497646,1753324249810,-500.0,0.00018864,2]
[374497647,1753324249819,-460.0,0.00019178,2]
[374497648,1753324249829,-460.86958397,0.00019178,2]
[374497649,1753324249839,-647.44462352,0.00019178,2]
[374497650,1753324249851,-465.00751436,0.00019178,2]
[374497651,1753324249860,-460.0,0.00019178,2]
[374497652,1753324249870,-460.0,0.00019178,2]
[374497653,1753324249879,-460.0,0.00019178,2]
[374497654,1753324249890,-465.6017451,0.00019452,2]
[374497655,1753324249899,-176.5223303,0.00019667,2]
[374497656,1753324249909,-152.9245722,0.00019667,2]
[374497657,1753324249918,-151.0,0.00019667,2]
[374497658,1753324249930,-151.0,0.00019667,2]
[374497659,1753324249940,-151.0,0.00019667,2]
[374497660,1753324249950,-151.0,0.00019667,2]
[374497661,1753324249959,-155.43328502,0.00019667,2]
[374497662,1753324249969,-152.18471657,0.00019667,2]
[374497663,1753324249980,-151.0,0.00019667,2]
[374497664,1753324249989,-151.0,0.00019667,2]
[374497665,1753324249999,-151.0,0.00019667,2]
[374497666,1753324250009,-151.0,0.00019667,2]
[374497667,1753324250019,-151.0,0.00019667,2]
[374497668,1753324250028,-151.0,0.00019667,2]
[374497669,1753324250037,-151.0,0.00019667,2]
[374497670,1753324250047,-151.0,0.00019667,2]
[374497671,1753324250056,-151.0,0.00019667,2]
[374497672,1753324250067,-151.0,0.00019667,2]
[374497673,1753324250075,-151.0,0.00019667,2]
[374497674,1753324250085,-151.0,0.00019667,2]
[374497675,1753324250094,-25000.0,0.00019667,2]
[374497676,1753324250104,-151.0,0.00019667,2]
[374497677,1753324250113,-3573.49104708,0.00019667,2]
[374497678,1753324250125,-732.15756489,0.00019667,2]
[374497679,1753324250140,-1382.13195195,0.00019667,2]
[374497680,1753324577919,17652.93587863,0.00017799,2]
[374497683,1753324807334,245.467205,0.00013699,2]
[374497689,1753325150127,-1261.3003317,0.00017621,2]
[374497690,1753325150148,-624.62147209,0.00017799,2]
[374497691,1753325252209,-1073.73271494,0.00017799,2]
[374497692,1753325253305,-902.97276673,0.00017799,2]
[374497693,1753325269937,150.0,0.000229,30]
[374497698,1753325348123,-251.50847519,0.00017451,2]
[374497699,1753325351122,150.0,0.00022995,30]
[374497700,1753325354222,-10000.0,0.00017348,2]
[374497701,1753325354253,-9.69672771,0.00017451,2]
[374497702,1753325354278,-3437.11847229,0.00017799,2]
[374497704,1753325368132,-1208.61869532,0.00017799,2]
[374497705,1753325368156,-1200.0,0.00017905,2]
[374497706,1753325368177,-1046.09519996,0.00017906,2]
[374497707,1753325427691,150.0,0.00022996,30]
[374497732,1753325432195,-120.12926294,0.00017906,2]
[374497734,1753325432206,-1200.0,0.00018172,2]
[374497736,1753325432217,-300.0,0.00018758,2]
[374497738,1753325432227,-300.0,0.00018758,2]
[374497740,1753325432237,-300.0,0.00018758,2]
[374497742,1753325432246,-300.0,0.00018758,2]
[374497744,1753325432258,-571.0,0.00018758,2]
[374497746,1753325432269,-4968.1955366,0.0001876,2]
[374497752,1753325432317,-10269.93021257,0.0001876,2]
[374497754,1753325432327,-516.86926325,0.00018765,2]
[374497756,1753325432337,-500.0,0.00018765,2]
[374497758,1753325432347,-500.0,0.00018765,2]
[374497760,1753325432357,-418.66054375,0.00018765,2]
[374497762,1753325432368,-500.0,0.00018765,2]
[374497764,1753325432378,-181.92042515,0.00018765,2]
[374497766,1753325432388,-500.0,0.00018765,2]
[374497768,1753325432398,-500.0,0.00018765,2]
[374497770,1753325432408,-500.0,0.00018765,2]
[374497772,1753325432417,-90373.49903333,0.00018766,2]
[374497774,1753325432427,-150.0,0.000189,2]
[374497776,1753325432436,-2644.85819507,0.00019007,2]
[374497778,1753325432446,-805.20432071,0.00019078,2]
[374497780,1753325432456,-810.46,0.00019168,3]
[374497782,1753325432465,-405.23,0.00019168,3]
[374497784,1753325432474,-202.61,0.00019168,3]
[374497786,1753325432484,-607.86,0.00019168,3]
[374497788,1753325432494,-500.0,0.00019173,2]
[374497790,1753325432503,-500.0,0.00019173,2]
[374497792,1753325432512,-500.0,0.00019173,2]
[374497793,1753325432521,-501.58713635,0.00019173,2]
[374497795,1753325432531,-509.76718022,0.00019173,2]
[374497797,1753325432541,-500.0,0.00019173,2]
[374497799,1753325432551,-508.1515286,0.00019173,2]
[374497801,1753325432560,-587.14,0.00019173,2]
[374497803,1753325432569,-218.41949046,0.00019177,2]
[374497805,1753325432579,-462.73715295,0.00019178,2]
[374497807,1753325432588,-460.0,0.00019178,2]
[374497809,1753325432598,-460.0,0.00019178,2]
[374497811,1753325432608,-462.3386407,0.00019178,2]
[374497813,1753325432619,-460.0,0.00019178,2]
[374497815,1753325432629,-460.0,0.00019178,2]
[374497817,1753325432639,-460.43868141,0.00019178,2]
[374497819,1753325432649,-460.0,0.00019178,2]
[374497821,1753325432659,-460.0,0.00019178,2]
[374497823,1753325432669,-460.0,0.00019178,2]
[374497825,1753325432679,-460.0,0.00019178,2]
[374497827,1753325432688,-460.0,0.00019178,2]
[374497828,1753325432699,-151.0,0.00019178,2]
[374497829,1753325432708,-463.07678824,0.00019178,2]
[374497830,1753325432717,-270.01015022,0.00019178,2]
[374497831,1753325432726,-191.6623,0.00019178,2]
[374497832,1753325432735,-460.0,0.00019178,2]
[374497833,1753325432745,-460.0,0.00019178,2]
[374497834,1753325432754,-460.0,0.00019178,2]
[374497835,1753325432764,-460.0,0.00019178,2]
[374497836,1753325432773,-151.0,0.00019178,2]
[374497837,1753325432782,-460.75249739,0.00019178,2]
[374497839,1753325432792,-461.03941453,0.00019178,2]
[374497841,1753325432801,-460.89709078,0.00019178,2]
[374497843,1753325432811,-461.80687607,0.00019178,2]
[374497845,1753325432820,-460.0,0.00019178,2]
[374497846,1753325432830,-460.0,0.00019178,2]
[374497848,1753325432840,-460.46812656,0.00019178,2]
[374497851,1753325432851,-461.09100398,0.00019178,2]
[374497853,1753325432861,-151.0,0.00019178,2]
[374497855,1753325432871,-341.71501169,0.00019178,2]
[374497857,1753325432881,-460.0,0.00019178,2]
[374497859,1753325432890,-461.95020292,0.00019178,2]
[374497861,1753325432900,-460.0,0.00019178,2]
[374497863,1753325432909,-460.0,0.00019178,2]